fUST/lending_fUST_20250423
["ID","MTS","AMOUNT","RATE_DAILY","PERIOD"]
[358724488,1745403062112,-222.1788314,0.00021301,2]
[358724489,1745403062122,-500.0,0.00021301,2]
[358724490,1745403062132,-613.49,0.00021301,2]
[358724491,1745403062142,-500.0,0.00021301,2]
[358724492,1745403062152,-874.61,0.00021301,2]
[358724493,1745403062161,-500.0,0.00021301,2]
[358724494,1745403062171,-500.0,0.00021301,2]
[358724495,1745403062180,-656.52,0.00021301,2]
[358724496,1745403062190,-500.0,0.00021301,2]
[358724497,1745403062199,-500.0,0.00021301,2]
[358724498,1745403062209,-500.0,0.00021301,2]
[358724499,1745403062219,-500.0,0.00021301,2]
[358724500,1745403062230,-526.63,0.00021301,2]
[358724501,1745403062239,-1958.53,0.00021301,2]
[358724502,1745403062248,-628.59,0.00021301,2]
[358724503,1745403062258,-626.92,0.00021301,2]
[358724504,1745403062268,-500.0,0.00021301,2]
[358724505,1745403062278,-500.0,0.00021301,2]
[358724506,1745403062287,-500.0,0.00021301,2]
[358724507,1745403062297,-500.0,0.00021301,2]
[358724508,1745403062307,-500.0,0.00021301,2]
[358724509,1745403062317,-500.0,0.00021301,2]
[358724510,1745403062327,-500.0,0.00021301,2]
[358724511,1745403062336,-500.0,0.00021301,2]
[358724512,1745403062346,-500.0,0.00021301,2]
[358724513,1745403062356,-500.0,0.00021302,2]
[358724514,1745403062367,-600.0,0.00021303,2]
[358724515,1745403062377,-500.0,0.00021341,2]
[358724516,1745403062386,-500.0,0.00021402,2]
[358724517,1745403062396,-500.0,0.00021402,2]
[358724518,1745403062405,-2253.75,0.00021402,2]
[358724519,1745403062414,-517.89,0.00021402,2]
[358724520,1745403062424,-500.0,0.00021402,2]
[358724521,1745403062434,-2458.84,0.00021402,2]
[358724522,1745403062444,-4774.56,0.00021402,2]
[358724523,1745403062454,-5737.28,0.00021402,2]
[358724524,1745403062464,-151.0,0.00021402,2]
[358724525,1745403062474,-151.0,0.00021402,2]
[358724526,1745403062484,-151.0,0.00021402,2]
[358724527,1745403062494,-151.0,0.00021402,2]
[358724528,1745403062504,-151.0,0.00021402,2]
[358724529,1745403062513,-246.14283,0.00021402,2]
[358724530,1745403062523,-151.0,0.00021402,2]
[358724531,1745403062532,-151.0,0.00021402,2]
[358724532,1745403062542,-271.357579,0.00021402,2]
[358724533,1745403062552,-151.0,0.00021402,2]
[358724534,1745403062562,-481.545953,0.00021402,2]
[358724535,1745403062572,-481.545953,0.00021402,2]
[358724536,1745403062582,-151.0,0.00021402,2]
[358724537,1745403062591,-500.0,0.00021404,2]
[358724538,1745403062602,-500.0,0.00021404,2]
[358724539,1745403062612,-500.0,0.00021404,2]
[358724540,1745403062622,-500.0,0.00021404,2]
[358724541,1745403062632,-500.0,0.00021404,2]
[358724542,1745403062642,-567.48311709,0.00021404,2]
[358724543,1745403062652,-381.57628921,0.00021404,2]
[358724544,1745403062662,-500.0,0.00021404,2]
[358724545,1745403062672,-507.31763022,0.00021404,2]
[358724546,1745403062682,-651.56,0.00021404,2]
[358724547,1745403062691,-500.0,0.00021404,2]
[358724548,1745403062702,-500.0,0.00021404,2]
[358724549,1745403062712,-500.0,0.00021404,2]
[358724550,1745403062723,-500.0,0.00021404,2]
[358724551,1745403062733,-291.39317495,0.00021404,2]
[358724552,1745403062743,-566.38,0.00021404,2]
[358724553,1745403062753,-500.0,0.00021404,2]
[358724554,1745403062762,-683.18,0.00021404,2]
[358724555,1745403062772,-500.0,0.00021404,2]
[358724556,1745403062782,-500.0,0.00021404,2]
[358724557,1745403062791,-200.0,0.00021442,7]
[358724558,1745403062802,-600.0,0.00021525,2]
[358724559,1745403062812,-500.0,0.0002157,2]
[358724560,1745403062822,-509.72,0.00021571,2]
[358724561,1745403062832,-835.53,0.00021571,2]
[358724562,1745403062842,-2593.26,0.00021571,2]
[358724563,1745403062853,-500.0,0.00021571,2]
[358724564,1745403062863,-8207.28,0.00021571,2]
[358724565,1745403062873,-10366.63,0.00021571,2]
[358724566,1745403062884,-500.0,0.00021571,2]
[358724567,1745403062894,-500.0,0.00021571,2]
[358724568,1745403062904,-4233.86,0.00021571,2]
[358724569,1745403062914,-500.0,0.00021571,2]
[358724570,1745403062925,-751.13,0.00021571,2]
[358724571,1745403062935,-645.17755834,0.00021571,2]
[358724572,1745403062946,-500.0,0.00021571,2]
[358724573,1745403062958,-500.0,0.00021571,2]
[358724574,1745403062968,-745.29,0.00021571,2]
[358724575,1745403062980,-565.1,0.00021574,2]
[358724576,1745403062991,-1088.04,0.00021574,2]
[358724577,1745403063001,-1553.74,0.00021574,2]
[358724578,1745403063011,-612.09,0.00021574,2]
[358724579,1745403063021,-562.58,0.00021574,2]
[358724580,1745403063031,-1393.65,0.00021574,2]
[358724581,1745403063043,-500.0,0.00021574,2]
[358724582,1745403063053,-500.0,0.00021574,2]
[358724583,1745403063066,-783.91,0.00021574,2]
[358724584,1745403063075,-598.03,0.00021574,2]
[358724585,1745403063086,-537.24,0.00021574,2]
[358724586,1745403063099,-822.07,0.00021574,2]
[358724587,1745403063110,-500.0,0.00021574,2]
[358724588,1745403063121,-524.38,0.00021574,2]
[358724589,1745403063131,-500.0,0.00021574,2]
[358724590,1745403063142,-3841.56,0.00021574,2]
[358724591,1745403063153,-500.0,0.00021574,2]
[358724592,1745403063163,-618.1,0.00021574,2]
[358724593,1745403063174,-300.0043599,0.00021575,2]
[358724594,1745403063184,-500.0,0.00021575,2]
[358724595,1745403063195,-500.0,0.00021575,2]
[358724596,1745403063205,-500.0,0.00021575,2]
[358724597,1745403063216,-500.0,0.00021575,2]
[358724598,1745403063229,-500.0,0.00021575,2]
[358724599,1745403063239,-656.41,0.00021575,2]
[358724600,1745403063250,-734.03,0.00021575,2]
[358724601,1745403063259,-500.0,0.00021575,2]
[358724602,1745403063269,-500.0,0.00021575,2]
[358724603,1745403063279,-682.6,0.00021575,2]
[358724604,1745403063288,-500.0,0.00021575,2]
[358724605,1745403063298,-500.0,0.00021575,2]
[358724606,1745403063309,-727.39,0.00021575,2]
[358724607,1745403063319,-686.67,0.00021575,2]
[358724608,1745403063329,-759.45,0.00021575,2]
[358724609,1745403063339,-797.43,0.00021575,2]
[358724610,1745403063349,-500.0,0.00021575,2]
[358724611,1745403063358,-593.54,0.00021575,2]
[358724612,1745403063368,-500.0,0.00021575,2]
[358724613,1745403063378,-500.0,0.00021575,2]
[358724614,1745403063387,-500.0,0.00021575,2]
[358724615,1745403063398,-500.0,0.00021575,2]
[358724616,1745403063408,-500.0,0.00021575,2]
[358724617,1745403063417,-500.0,0.00021575,2]
[358724618,1745403063427,-500.0,0.00021575,2]
[358724619,1745403063437,-500.0,0.00021575,2]
[358724620,1745403063447,-500.0,0.00021575,2]
[358724621,1745403063457,-500.0,0.00021575,2]
[358724622,1745403063467,-624.72,0.00021575,2]
[358724623,1745403063479,-500.0,0.00021575,2]
[358724624,1745403063490,-500.0,0.00021575,2]
[358724625,1745403063500,-500.0,0.00021575,2]
[358724626,1745403063510,-500.0,0.00021575,2]
[358724627,1745403063520,-521.12423146,0.00021575,2]
[358724628,1745403063530,-500.0,0.00021575,2]
[358724629,1745403063541,-344.39662619,0.00021575,2]
[358724630,1745403063551,-500.0,0.00021575,2]
[358724631,1745403063562,-500.0,0.00021575,2]
[358724632,1745403063573,-632.60177618,0.00021575,2]
[358724633,1745403063583,-500.0,0.00021575,2]
[358724634,1745403063594,-500.0,0.00021575,2]
[358724635,1745403063770,-500.0,0.00021575,2]
[358724636,1745403063780,-3144.14,0.00021575,2]
[358724637,1745403063790,-500.0,0.00021575,2]
[358724638,1745403063800,-500.0,0.00021575,2]
[358724639,1745403063810,-500.0,0.00021575,2]
[358724640,1745403063819,-500.0,0.00021575,2]
[358724641,1745403063829,-500.0,0.00021575,2]
[358724642,1745403063839,-500.0,0.00021575,2]
[358724643,1745403063849,-500.0,0.00021575,2]
[358724644,1745403063858,-2273.01,0.00021575,2]
[358724645,1745403063868,-500.0,0.00021575,2]
[358724646,1745403063878,-500.0,0.00021575,2]
[358724647,1745403063887,-500.0,0.00021575,2]
[358724648,1745403063897,-500.0,0.00021575,2]
[358724649,1745403063906,-500.0,0.00021575,2]
[358724650,1745403063916,-613.49,0.00021575,2]
[358724651,1745403063926,-500.0,0.00021575,2]
[358724652,1745403063936,-874.61,0.00021575,2]
[358724653,1745403063946,-500.0,0.00021575,2]
[358724654,1745403063956,-500.0,0.00021575,2]
[358724655,1745403063966,-656.52,0.00021575,2]
[358724656,1745403063978,-500.0,0.00021575,2]
[358724657,1745403063987,-500.0,0.00021575,2]
[358724658,1745403063997,-500.0,0.00021575,2]
[358724659,1745403064007,-500.0,0.00021575,2]
[358724660,1745403064016,-526.63,0.00021575,2]
[358724661,1745403064027,-1958.53,0.00021575,2]
[358724662,1745403064036,-628.59,0.00021575,2]
[358724663,1745403064048,-626.92,0.00021575,2]
[358724664,1745403064058,-329.82885726,0.00021575,2]
[358724665,1745403064069,-500.0,0.00021575,2]
[358724666,1745403064079,-500.0,0.00021575,2]
[358724667,1745403064089,-500.0,0.00021575,2]
[358724668,1745403064099,-500.0,0.00021575,2]
[358724669,1745403064109,-500.0,0.00021575,2]
[358724670,1745403064119,-500.0,0.00021575,2]
[358724671,1745403064129,-500.0,0.00021575,2]
[358724672,1745403064140,-500.0,0.00021575,2]
[358724673,1745403064149,-612.58515484,0.00021576,2]
[358724674,1745403064159,-500.0,0.00021615,2]
[358724675,1745403064169,-420.82143104,0.00021668,2]
[358724676,1745403064178,-219.140886,0.00021676,2]
[358724677,1745403064188,-219.140886,0.00021676,2]
[358724678,1745403064197,-500.0,0.00021676,2]
[358724679,1745403064207,-500.0,0.00021676,2]
[358724680,1745403064216,-2253.75,0.00021676,2]
[358724681,1745403064227,-517.89,0.00021676,2]
[358724682,1745403064236,-500.0,0.00021676,2]
[358724683,1745403064245,-2458.84,0.00021676,2]
[358724684,1745403064255,-4774.56,0.00021676,2]
[358724685,1745403064265,-5737.28,0.00021676,2]
[358724686,1745403064276,-151.0,0.00021676,2]
[358724687,1745403064286,-151.0,0.00021676,2]
[358724688,1745403064296,-151.0,0.00021678,2]
[358724689,1745403064306,-151.0,0.00021678,2]
[358724690,1745403064316,-151.0,0.00021678,2]
[358724691,1745403064326,-500.0,0.00021678,2]
[358724692,1745403064335,-500.0,0.00021678,2]
[358724693,1745403064345,-601.975132,0.00021678,2]
[358724694,1745403064355,-500.0,0.00021678,2]
[358724695,1745403064365,-500.0,0.00021678,2]
[358724696,1745403064375,-625.43846611,0.00021678,2]
[358724697,1745403064384,-651.56,0.00021678,2]
[358724698,1745403064394,-500.0,0.00021678,2]
[358724699,1745403064404,-500.0,0.00021678,2]
[358724700,1745403064414,-500.0,0.00021678,2]
[358724701,1745403064424,-296.43043326,0.00021678,2]
[358724702,1745403064434,-566.38,0.00021678,2]
[358724703,1745403064444,-500.0,0.00021678,2]
[358724704,1745403064454,-683.18,0.00021678,2]
[358724705,1745403064465,-500.0,0.00021678,2]
[358724706,1745403064477,-500.0,0.00021678,2]
[358724707,1745403064487,-151.0,0.00021678,2]
[358724708,1745403064498,-420.0,0.00021699,2]
[358724709,1745403064509,-8316.09559496,0.00021728,3]
[358724710,1745403064519,-151.0,0.00021747,2]
[358724711,1745403064530,-600.0,0.00021747,2]
[358724712,1745403064540,-151.0,0.00021762,2]
[358724713,1745403064550,-151.0,0.00021762,2]
[358724714,1745403064560,-151.0,0.00021762,2]
[358724715,1745403064570,-151.888055,0.00021762,2]
[358724716,1745403064581,-160.0,0.00021762,3]
[358724717,1745403064591,-12573.79847128,0.00021762,3]
[358724718,1745403064601,-160.0,0.00021762,3]
[358724719,1745403064611,-160.0,0.00021762,3]
[358724720,1745403064621,-839.95942076,0.00021762,3]
[358724721,1745403064630,-3002.74,0.000218,2]
[358724722,1745403064639,-151.0,0.000218,2]
[358724723,1745403064649,-151.0,0.000218,2]
[358724724,1745403064659,-500.0,0.00021844,2]
[358724725,1745403064669,-509.72,0.00021845,2]
[358724726,1745403064679,-835.53,0.00021845,2]
[358724727,1745403064689,-2593.26,0.00021845,2]
[358724728,1745403064699,-500.0,0.00021845,2]
[358724729,1745403064709,-8207.28,0.00021845,2]
[358724730,1745403064718,-10366.63,0.00021845,2]
[358724731,1745403064729,-500.0,0.00021845,2]
[358724732,1745403064739,-500.0,0.00021845,2]
[358724733,1745403064748,-4233.86,0.00021845,2]
[358724734,1745403064757,-500.0,0.00021845,2]
[358724735,1745403064768,-751.13,0.00021845,2]
[358724736,1745403064779,-500.0,0.00021845,2]
[358724737,1745403064788,-500.0,0.00021845,2]
[358724738,1745403064798,-745.29,0.00021845,2]
[358724739,1745403064807,-565.1,0.00021848,2]
[358724740,1745403064817,-1088.04,0.00021848,2]
[358724741,1745403064827,-1553.74,0.00021848,2]
[358724742,1745403064837,-612.09,0.00021848,2]
[358724743,1745403064847,-562.58,0.00021848,2]
[358724744,1745403064858,-1393.65,0.00021848,2]
[358724745,1745403064868,-500.0,0.00021848,2]
[358724746,1745403064877,-169.91680653,0.00021848,2]
[358724747,1745403064887,-783.91,0.00021848,2]
[358724748,1745403064897,-598.03,0.00021848,2]
[358724749,1745403064908,-537.24,0.00021848,2]
[358724750,1745403064919,-822.07,0.00021848,2]
[358724751,1745403064929,-297.09280246,0.00021848,2]
[358724752,1745403064939,-524.38,0.00021848,2]
[358724753,1745403064949,-500.0,0.00021848,2]
[358724754,1745403064960,-3841.56,0.00021848,2]
[358724755,1745403064970,-500.0,0.00021848,2]
[358724756,1745403064982,-618.1,0.00021848,2]
[358724757,1745403064991,-500.0,0.00021849,2]
[358724758,1745403065001,-500.0,0.00021849,2]
[358724759,1745403065011,-500.0,0.00021849,2]
[358724760,1745403065020,-500.0,0.00021849,2]
[358724761,1745403065030,-500.0,0.00021849,2]
[358724762,1745403065040,-656.41,0.00021849,2]
[358724763,1745403065049,-734.03,0.00021849,2]
[358724764,1745403065060,-500.0,0.00021849,2]
[358724765,1745403065069,-500.0,0.00021849,2]
[358724766,1745403065078,-682.6,0.00021849,2]
[358724767,1745403065087,-500.0,0.00021849,2]
[358724768,1745403065095,-526.59333119,0.00021849,2]
[358724769,1745403065106,-727.39,0.00021849,2]
[358724770,1745403065115,-686.67,0.00021849,2]
[358724771,1745403065124,-759.45,0.00021849,2]
[358724772,1745403065135,-797.43,0.00021849,2]
[358724773,1745403065145,-500.0,0.00021849,2]
[358724774,1745403065154,-593.54,0.00021849,2]
[358724775,1745403065163,-500.0,0.00021849,2]
[358724776,1745403065172,-500.0,0.00021849,2]
[358724777,1745403065181,-500.0,0.00021849,2]
[358724778,1745403065190,-500.0,0.00021849,2]
[358724779,1745403065199,-500.0,0.00021849,2]
[358724780,1745403065208,-500.0,0.00021849,2]
[358724781,1745403065217,-436.90491615,0.00021849,2]
[358724782,1745403065228,-500.0,0.00021849,2]
[358724783,1745403065237,-500.0,0.00021849,2]
[358724784,1745403065247,-500.0,0.00021849,2]
[358724785,1745403065256,-624.72,0.00021849,2]
[358724786,1745403065265,-500.0,0.00021849,2]
[358724787,1745403065274,-306.65726831,0.00021849,2]
[358724788,1745403065283,-500.0,0.00021849,2]
[358724789,1745403065292,-500.0,0.00021849,2]
[358724790,1745403065301,-500.0,0.00021849,2]
[358724791,1745403065310,-500.0,0.00021849,2]
[358724792,1745403065319,-500.0,0.00021849,2]
[358724793,1745403065328,-500.0,0.00021849,2]
[358724794,1745403065337,-500.0,0.00021849,2]
[358724795,1745403065347,-500.0,0.00021849,2]
[358724796,1745403065355,-3144.14,0.00021849,2]
[358724797,1745403065365,-500.0,0.00021849,2]
[358724798,1745403065374,-500.0,0.00021849,2]
[358724799,1745403065383,-500.0,0.00021849,2]
[358724800,1745403065392,-500.0,0.00021849,2]
[358724801,1745403065401,-500.0,0.00021849,2]
[358724802,1745403065411,-500.0,0.00021849,2]
[358724803,1745403065420,-500.0,0.00021849,2]
[358724804,1745403065430,-2273.01,0.00021849,2]
[358724805,1745403065439,-500.0,0.00021849,2]
[358724806,1745403065448,-500.0,0.00021849,2]
[358724807,1745403065457,-500.0,0.00021849,2]
[358724808,1745403065467,-500.0,0.00021849,2]
[358724809,1745403065478,-283.74,0.00021849,2]
[358724810,1745403065487,-613.49,0.00021849,2]
[358724811,1745403065497,-400.62145837,0.00021849,2]
[358724812,1745403065506,-874.61,0.00021849,2]
[358724813,1745403065515,-500.0,0.00021849,2]
[358724814,1745403065525,-500.0,0.00021849,2]
[358724815,1745403065535,-656.52,0.00021849,2]
[358724816,1745403065544,-500.0,0.00021849,2]
[358724817,1745403065555,-599.93760173,0.00021849,2]
[358724818,1745403065564,-230.99162664,0.00021849,2]
[358724819,1745403065574,-500.0,0.00021849,2]
[358724820,1745403065584,-526.63,0.00021849,2]
[358724821,1745403065594,-1958.53,0.00021849,2]
[358724822,1745403065603,-628.59,0.00021849,2]
[358724823,1745403065612,-626.92,0.00021849,2]
[358724824,1745403065622,-500.0,0.00021849,2]
[358724825,1745403065631,-500.0,0.00021849,2]
[358724826,1745403065640,-500.0,0.00021849,2]
[358724827,1745403065650,-500.0,0.00021849,2]
[358724828,1745403065660,-500.0,0.00021849,2]
[358724829,1745403065670,-500.0,0.00021849,2]
[358724830,1745403065679,-500.0,0.00021849,2]
[358724831,1745403065689,-154.81083851,0.00021849,2]
[358724832,1745403065698,-518.60307794,0.0002186,2]
[358724833,1745403065708,-1714.428928,0.0002186,5]
[358724834,1745403065717,-1000.0,0.0002188,5]
[358724835,1745403065727,-500.0,0.00021889,2]
[358724836,1745403065737,-1000.0,0.000219,5]
[358724837,1745403065746,-151.0,0.00021918,2]
[358724838,1745403065756,-151.0,0.00021918,2]
[358724839,1745403065766,-166.0,0.00021918,2]
[358724840,1745403065775,-162.909661,0.00021918,2]
[358724841,1745403065784,-151.0,0.00021918,2]
[358724842,1745403065793,-200.0,0.00021923,7]
[358724843,1745403065803,-361.80902884,0.00021923,7]
[358724844,1745403065813,-237.09105352,0.0002195,2]
[358724845,1745403065824,-500.0,0.0002195,2]
[358724846,1745403065833,-2253.75,0.0002195,2]
[358724847,1745403065843,-517.89,0.0002195,2]
[358724848,1745403065852,-500.0,0.0002195,2]
[358724849,1745403065862,-2458.84,0.0002195,2]
[358724850,1745403065871,-4774.56,0.0002195,2]
[358724851,1745403065879,-5737.28,0.0002195,2]
[358724852,1745403065889,-500.0,0.00021952,2]
[358724853,1745403065898,-500.0,0.00021952,2]
[358724854,1745403065909,-500.0,0.00021952,2]
[358724855,1745403065919,-500.0,0.00021952,2]
[358724856,1745403065929,-651.56,0.00021952,2]
[358724857,1745403065938,-500.0,0.00021952,2]
[358724858,1745403065947,-500.0,0.00021952,2]
[358724859,1745403065957,-500.0,0.00021952,2]
[358724860,1745403065966,-566.38,0.00021952,2]
[358724861,1745403065975,-500.0,0.00021952,2]
[358724862,1745403065984,-683.18,0.00021952,2]
[358724863,1745403065993,-500.0,0.00021952,2]
[358724864,1745403066003,-500.0,0.00021952,2]
[358724865,1745403066012,-151.0,0.00021954,7]
[358724866,1745403066021,-151.0,0.00021955,7]
[358724867,1745403066031,-1007.94187507,0.00021969,2]
[358724868,1745403066042,-500.0,0.00021973,2]
[358724869,1745403066051,-151.60294825,0.00021973,2]
[358724870,1745403066060,-500.0,0.00021973,2]
[358724871,1745403066069,-500.0,0.00021973,2]
[358724872,1745403066079,-500.0,0.00021973,2]
[358724873,1745403066088,-500.0,0.00021973,2]
[358724874,1745403066098,-500.0,0.00021973,2]
[358724875,1745403066107,-500.0,0.00021973,2]
[358724876,1745403066117,-182.68854,0.00021973,7]
[358724877,1745403066127,-182.68854,0.00021973,7]
[358724878,1745403066136,-11804.57972199,0.00022,2]
[358724879,1745403066146,-124392.82324429,0.00022,2]
[358724880,1745403066155,-3827.0,0.00022,2]
[358724881,1745403066164,-2021.90251778,0.00022,7]
[358724882,1745403066174,-151.0,0.00022,7]
[358724883,1745403066183,-151.0,0.00022,7]
[358724884,1745403066192,-151.0,0.00022,7]
[358724885,1745403066202,-151.0,0.00022,7]
[358724886,1745403066211,-151.0,0.00022,7]
[358724887,1745403066220,-219.140886,0.00022,7]
[358724889,1745403066231,-219.140886,0.00022,7]
[358724890,1745403066240,-151.0,0.00022,7]
[358724891,1745403066249,-151.0,0.00022,7]
[358724892,1745403066258,-151.0,0.00022,7]
[358724893,1745403066268,-151.0,0.00022,7]
[358724894,1745403066279,-151.0,0.00022,7]
[358724895,1745403066288,-151.0,0.00022,7]
[358724896,1745403066298,-151.0,0.00022,7]
[358724897,1745403066307,-481.545953,0.00022,2]
[358724898,1745403066316,-481.545953,0.00022,2]
[358724899,1745403066326,-500.0,0.00022118,2]
[358724900,1745403066335,-509.72,0.00022119,2]
[358724901,1745403066345,-835.53,0.00022119,2]
[358724902,1745403066354,-2593.26,0.00022119,2]
[358724903,1745403066363,-500.0,0.00022119,2]
[358724904,1745403066372,-8207.28,0.00022119,2]
[358724905,1745403066382,-10366.63,0.00022119,2]
[358724906,1745403066391,-500.0,0.00022119,2]
[358724907,1745403066401,-4233.86,0.00022119,2]
[358724908,1745403066410,-500.0,0.00022119,2]
[358724909,1745403066420,-751.13,0.00022119,2]
[358724910,1745403066430,-500.0,0.00022119,2]
[358724911,1745403066440,-500.0,0.00022119,2]
[358724912,1745403066450,-745.29,0.00022119,2]
[358724913,1745403066459,-565.1,0.00022122,2]
[358724914,1745403066469,-1088.04,0.00022122,2]
[358724915,1745403066480,-1553.74,0.00022122,2]
[358724916,1745403066489,-612.09,0.00022122,2]
[358724917,1745403066499,-562.58,0.00022122,2]
[358724918,1745403066512,-1393.65,0.00022122,2]
[358724919,1745403066522,-500.0,0.00022122,2]
[358724920,1745403066532,-783.91,0.00022122,2]
[358724921,1745403066542,-598.03,0.00022122,2]
[358724922,1745403066553,-537.24,0.00022122,2]
[358724923,1745403066563,-822.07,0.00022122,2]
[358724924,1745403066573,-524.38,0.00022122,2]
[358724925,1745403066582,-500.0,0.00022122,2]
[358724926,1745403066593,-3841.56,0.00022122,2]
[358724927,1745403066603,-500.0,0.00022122,2]
[358724928,1745403066613,-618.1,0.00022122,2]
[358724929,1745403066624,-500.0,0.00022123,2]
[358724930,1745403066633,-500.0,0.00022123,2]
[358724931,1745403066642,-500.0,0.00022123,2]
[358724932,1745403066652,-397.00661423,0.00022123,2]
[358724933,1745403066662,-500.0,0.00022123,2]
[358724934,1745403066671,-656.41,0.00022123,2]
[358724935,1745403066681,-734.03,0.00022123,2]
[358724936,1745403066692,-500.0,0.00022123,2]
[358724937,1745403066702,-500.0,0.00022123,2]
[358724938,1745403066712,-682.6,0.00022123,2]
[358724939,1745403066721,-500.0,0.00022123,2]
[358724940,1745403066732,-727.39,0.00022123,2]
[358724941,1745403066741,-686.67,0.00022123,2]
[358724942,1745403066750,-759.45,0.00022123,2]
[358724943,1745403066760,-797.43,0.00022123,2]
[358724944,1745403066769,-500.0,0.00022123,2]
[358724945,1745403066779,-593.54,0.00022123,2]
[358724946,1745403066789,-500.0,0.00022123,2]
[358724947,1745403066798,-500.0,0.00022123,2]
[358724948,1745403066807,-500.0,0.00022123,2]
[358724949,1745403066817,-500.0,0.00022123,2]
[358724950,1745403066827,-500.0,0.00022123,2]
[358724951,1745403066836,-349.07608356,0.00022123,2]
[358724952,1745403066846,-500.0,0.00022123,2]
[358724953,1745403066856,-500.0,0.00022123,2]
[358724954,1745403066866,-500.0,0.00022123,2]
[358724955,1745403066876,-624.72,0.00022123,2]
[358724956,1745403066885,-500.0,0.00022123,2]
[358724957,1745403066895,-585.68857509,0.00022123,2]
[358724958,1745403066904,-500.0,0.00022123,2]
[358724959,1745403067067,-500.0,0.00022123,2]
[358724960,1745403067078,-272.26704,0.00022123,7]
[358724961,1745403067088,-500.0,0.00022123,2]
[358724962,1745403067099,-500.0,0.00022123,2]
[358724963,1745403067109,-500.0,0.00022123,2]
[358724964,1745403067120,-500.0,0.00022123,2]
[358724965,1745403067129,-500.0,0.00022123,2]
[358724966,1745403067140,-3144.14,0.00022123,2]
[358724967,1745403067150,-500.0,0.00022123,2]
[358724968,1745403067159,-500.0,0.00022123,2]
[358724969,1745403067169,-526.19036899,0.00022123,2]
[358724970,1745403067178,-500.0,0.00022123,2]
[358724971,1745403067187,-500.0,0.00022123,2]
[358724972,1745403067197,-500.0,0.00022123,2]
[358724973,1745403067207,-290.43557046,0.00022123,2]
[358724974,1745403067216,-2273.01,0.00022123,2]
[358724975,1745403067227,-500.0,0.00022123,2]
[358724976,1745403067236,-500.0,0.00022123,2]
[358724977,1745403067245,-500.0,0.00022123,2]
[358724978,1745403067255,-500.0,0.00022123,2]
[358724979,1745403067265,-151.0,0.00022123,7]
[358724980,1745403067274,-613.49,0.00022123,2]
[358724981,1745403067283,-874.61,0.00022123,2]
[358724982,1745403067292,-500.0,0.00022123,2]
[358724983,1745403067302,-500.0,0.00022123,2]
[358724984,1745403067312,-656.52,0.00022123,2]
[358724985,1745403067322,-500.0,0.00022123,2]
[358724986,1745403067332,-500.0,0.00022123,2]
[358724987,1745403067342,-151.0,0.00022123,7]
[358724988,1745403067352,-526.63,0.00022123,2]